Cogmind - Beta 12 X1 @@@ ROGUE MODE // 2022.08.30 @ 21:23:54 Player: Decinym Result: Destroyed by Y-45 Defender with Heavy Assault Rifle Performance ------------- Evolutions (2) 1000 Regions Visited (11) 2200 Robots Destroyed (157) 785 Value Destroyed (3987) 3987 Prototype IDs (36) 720 Alien Tech Used (0) 0 Bonus (1337) 1337 TOTAL SCORE: 10029 Bonus ------- High Alert Combat Kills 487 Follower Combat Kills 374 Entered Garrisons 400 Aligned with FarCom 300 Friendly Fire -224 Cogmind --------- Core Integrity 0/550 Matter 290/300 Energy 280/310 System Corruption 3% Temperature Cool (51) Movement Treading (240) Ox1 Location -8/Storage Parts ------- > --- POWER (1) -------- Reinforced Fission Core > --- PROPULSION (3) --- Light Treads Light Treads > --- UTILITY (5) ------ Improved Heat Sink High-capacity Storage Unit Experimental Core Analyzer Advanced Weapon Cycler Hacking Suite > --- WEAPON (2) ------- Compact Ion Cannon Compact Ion Cannon > --- INVENTORY (20) --- Heavy Deuterium Engine Aluminum Leg Carbon-fiber Leg Advanced Myomer Leg Huge Storage Unit Gravity Neutralizer Active Sensor Suite Makeshift Terrain Scanner Advanced Transmission Jammer AWS/EX-DEC Compact Ion Cannon Compact Ion Cannon Compact Ion Cannon Compact Ion Cannon Powered Hammer Peak State ------------ > --- POWER ------------ Reinforced Fission Core > --- PROPULSION ------- Carbon-fiber Leg Advanced Myomer Leg Advanced Myomer Leg > --- UTILITY ---------- Improved Heat Sink High-capacity Storage Unit Advanced Weapon Cycler Light Armor Plating Light Armor Plating > --- WEAPON ----------- AWS/EX-DEC > --- INVENTORY -------- Improved Ion Engine Heavy Deuterium Engine Light Treads Light Treads Huge Storage Unit Large Matter Pod Gravity Neutralizer Makeshift Terrain Scanner Experimental Targeting Computer Experimental Core Analyzer Advanced Transmission Jammer Assault Rifle Assault Rifle Heavy Assault Rifle Enhanced Autogun Powered Hammer Stasis Trap [Rating: 65] Favorites ----------- Power Reinforced Fission Core Engine Improved Ion Engine Power Core Reinforced Fission Core Reactor Cold Fusion Reactor Propulsion Light Treads Treads Light Treads Leg Advanced Myomer Leg Wheel Compact Wheel Utility High-capacity Storage Unit Device Improved Heat Sink Storage High-capacity Storage Unit Processor Improved Targeting Computer Hackware Hacking Suite Protection Light Armor Plating Weapon Advanced Beam Cannon Energy Gun Heavy Laser Energy Cannon Advanced Beam Cannon Ballistic Gun Assault Rifle Launcher Rocket Launcher Special Weapon Field Lobotomy Kit Impact Weapon Powered Hammer Build | -11 -10 -10 -9 -9 -9 -8 -8 -8 -8 -8 -8 ------- Run | Scr Mat Min Mat Min Exi Min Mat Gar Mat Gar Sto Slots Evolved 4 | . . . 2 . . . 2 . . . . Power . | . . . . . . . . . . . . Propulsion 1 | . . . 1 . . . . . . . . Utility 3 | . . . 1 . . . 2 . . . . Weapon . | . . . . . . . . . . . . Parts Attached 141 | . 8 3 18 1 30 5 6 19 18 18 15 Power 12 | . 1 . 2 . 4 . . 1 3 1 . Engine 7 | . 1 . 2 . 2 . . . 2 . . Core 4 | . . . . . 1 . . 1 1 1 . Reactor 1 | . . . . . 1 . . . . . . Propulsion 37 | . 2 . 5 1 8 . . 5 3 8 5 Treads 28 | . . . 5 1 4 . . 3 3 8 4 Leg 6 | . . . . . 4 . . 2 . . . Wheel 3 | . 2 . . . . . . . . . 1 Hover . | . . . . . . . . . . . . Flight . | . . . . . . . . . . . . Utility 37 | . 3 . 2 . 8 3 2 6 6 2 5 Device 14 | . 1 . . . 3 1 1 2 1 2 3 Storage 5 | . 2 . . . 2 . . . 1 . . Processor 5 | . . . 2 . . . . . 2 . 1 Hackware 1 | . . . . . . . . . . . 1 Protection 12 | . . . . . 3 2 1 4 2 . . Artifact . | . . . . . . . . . . . . Weapon 55 | . 2 3 9 . 10 2 4 7 6 7 5 Energy Gun 14 | . 2 . 2 . . . 1 3 4 2 . Energy Cannon 17 | . . . 5 . 3 . 1 . 1 2 5 Ballistic Gun 16 | . . 2 1 . 4 1 2 3 1 2 . Ballistic Cannon . | . . . . . . . . . . . . Launcher 4 | . . 1 1 . 2 . . . . . . Special Weapon 1 | . . . . . 1 . . . . . . Impact Weapon 3 | . . . . . . 1 . 1 . 1 . Slashing Weapon . | . . . . . . . . . . . . Piercing Weapon . | . . . . . . . . . . . . Special Melee Weapon . | . . . . . . . . . . . . Unidentified Prototypes 13 | . . . 2 . 4 . 2 1 3 . 1 Corrupted Parts 1 | . . . . . . 1 . . . . . System Corruption 6 | . . . . . . 6 . . . . . Parts Lost 38 | . 1 1 . . 11 3 . 9 2 7 4 Power 5 | . 1 . . . 3 . . 1 . . . Propulsion 13 | . . . . . 5 . . 1 . 4 3 Utility 12 | . . . . . 1 2 . 6 . 2 1 Weapon 8 | . . 1 . . 2 1 . 1 2 1 . Highest Loss Streak 8 | . 1 1 . . 8 3 . 5 1 3 2 To Critical Strikes 4 | . . . . . 4 . . . . . . Average Slot Usage (%) 95 | . 97 100 96 100 97 100 99 89 92 98 97 Engine 5 | . 13 14 11 11 7 . . . 6 . . Core 4 | . . . . . 2 . . 7 2 8 9 Treads 21 | . . . 31 33 25 . . 18 27 26 22 Leg 4 | . 14 . . . 5 33 27 8 . . . Wheel 2 | . 13 28 1 . . . . . . . 2 Device 12 | . 12 14 11 11 8 . 17 17 11 14 16 Storage 11 | . 14 14 11 11 11 11 9 9 9 18 9 Processor 7 | . . . 8 11 11 9 . . 8 10 16 Protection 4 | . . . . . 2 12 18 10 8 . . Energy Gun 6 | . 28 21 1 . . . . 6 9 6 . Energy Cannon 9 | . . . 18 22 17 20 2 . . 8 13 Ballistic Gun 4 | . . 6 1 . 3 1 15 9 7 3 4 Naked Turns . | . . . . . . . . . . . . Heaviest Build 97 | 12 91 51 57 57 97 68 70 79 89 74 73 Greatest Support 80 | 20 32 32 63 63 80 80 80 80 60 60 60 Greatest Overweight (x) 4 | . 4 1 1 . 1 . . 1 1 1 4 Average Overweight (x) . | . . 1 . . . . . . . . 2 Largest Inventory Capacity 25 | . 25 20 20 20 25 20 20 20 20 20 20 Average Capacity 20 | . 13 20 20 20 22 20 20 20 20 20 20 Most Carried 25 | . 11 16 20 20 25 20 19 20 20 20 20 Average Carried 18 | . 8 13 18 19 19 19 16 19 19 18 18 Final Capacity 20 | 8 20 20 20 20 20 20 20 20 20 20 20 Final Carried 20 | 6 11 16 20 20 20 18 19 20 20 17 18 Class Distribution -------------------- 67% | Scavenger-Mutant 32% | Mutant Dominant Class ---------------- Mutant | -10/Materials Mutant | -10/Mines Mutant | -9/Materials Mutant | -9/Mines Mutant | -9/Exiles Scavenger-Mutant | -8/Mines Scavenger-Mutant | -8/Materials Scavenger-Mutant | -8/Garrison Scavenger-Mutant | -8/Materials Scavenger-Mutant | -8/Garrison Scavenger-Mutant | -8/Storage Resources | -11 -10 -10 -9 -9 -9 -8 -8 -8 -8 -8 -8 ----------- Run | Scr Mat Min Mat Min Exi Min Mat Gar Mat Gar Sto Matter Collected 2714 | 200 80 74 336 10 510 60 126 537 330 247 204 Remotely . | . . . . . . . . . . . . Salvage Created 5755 | . 353 141 516 501 417 247 172 944 1072 793 599 Parts 317 | . 15 11 32 22 45 9 15 46 52 45 25 Haulers Intercepted 8 | . 2 . 3 . . . . . 3 . . Recyclers Shooed 3 | . 1 . . . . . 2 . . . . Parts Field Recycled . | . . . . . . . . . . . . Retrieved Matter . | . . . . . . . . . . . . Parts Self-Destructed . | . . . . . . . . . . . . Prevented . | . . . . . . . . . . . . Kills | -11 -10 -10 -9 -9 -9 -8 -8 -8 -8 -8 -8 ------- Run | Scr Mat Min Mat Min Exi Min Mat Gar Mat Gar Sto Combat Hostiles Destroyed 131 | . 9 8 11 11 5 10 4 23 18 24 8 Melee 1 | . . . . . . . . . . 1 . Guns 66 | . 8 5 1 . 1 . 4 19 17 11 . Cannons 44 | . . . 6 10 . 9 . . 1 11 7 AOE 15 | . . 3 4 1 4 . . 3 . . . Classes Destroyed 15 | . 4 . 3 2 1 . . 1 2 2 . Worker 3 | . . . . 1 . . . . 1 . 1 Builder 2 | . . . . . . . . . 1 . 1 Hauler 8 | . 2 . 3 . . . . . 3 . . Recycler 8 | . 1 . . 2 . . 1 . 1 . 3 Operator 2 | . . . 1 . . . . . 1 . . Watcher 1 | . . . . . . . . . 1 . . Swarmer 49 | . 5 6 4 3 . 7 3 7 3 9 2 Cutter 3 | . . . . . . . . . . 3 . Grunt 55 | . 4 2 3 7 . 2 . 11 12 10 4 Brawler 3 | . . . 1 . . 1 . . . 1 . Duelist 1 | . . . . . . . . . . 1 . Sentry 13 | . . . 3 . . . 1 4 3 . 2 Programmer 1 | . . . . . . . . 1 . . . Zionite 4 | . . . . . 4 . . . . . . Assembled 6 | . . . . 2 4 . . . . . . Best Kill Streak 8 | . 3 3 6 5 4 4 3 8 8 5 6 Combat Bots Only 8 | . 3 3 6 4 4 4 3 8 5 5 4 Max Kills in Single Turn 3 | . 1 2 2 2 2 1 1 3 1 2 2 Gunslinging . | . . . . . . . . . . . . Exploded 3 | . . 2 2 1 2 . . 3 . . . Melee 1 | . . . . . . . . . . 1 . Uniques/NPCs Destroyed 4 | . . . . . 4 . . . . . . 8R-AWN (-9/Exiles) EX-DEC (-9/Exiles) EX-BIN (-9/Exiles) EX-HEX (-9/Exiles) Combat | -11 -10 -10 -9 -9 -9 -8 -8 -8 -8 -8 -8 -------- Run | Scr Mat Min Mat Min Exi Min Mat Gar Mat Gar Sto Damage Taken 7673 | . 381 109 160 328 1371 668 101 1246 1127 1632 550 Core 1028 | . 101 16 9 44 187 118 13 144 42 161 193 Absorbed by Shields 633 | . . . . . 171 . 44 241 . 166 11 Regen/Repaired (Parts) 240 | . . . . . . . . . 240 . . Core Remaining (%) 54 | 100 . 53 . . . 10 . . . . . Volleys Fired 432 | . 31 19 31 29 75 29 16 39 71 68 24 Largest 2 | . 2 2 2 2 2 2 2 2 2 2 2 Hottest 180 | . 130 130 136 136 136 136 48 48 133 137 180 Shots Fired 880 | . 62 37 60 58 141 57 32 123 136 127 47 Gun 548 | . 62 35 16 . 67 4 32 123 123 84 2 Cannon 324 | . . . 42 58 70 53 . . 13 43 45 Launcher 7 | . . 2 2 . 3 . . . . . . Special 1 | . . . . . 1 . . . . . . Kinetic 263 | . . 10 8 . 67 4 32 78 45 17 2 Thermal 566 | . 62 25 50 58 70 53 . 2 91 110 45 Explosive 7 | . . 2 2 . 3 . . . . . . Electromagnetic 43 | . . . . . . . . 43 . . . Robot Hit Streak 36 | . 13 3 15 8 36 17 3 13 19 8 9 Robot Miss Streak 4 | . 3 2 2 3 3 4 3 3 3 4 3 Penetration Max . | . . . . . . . . . . . . Secondary Targets 13 | . 3 1 . . . . . 2 5 2 . Max Gunslinging Chain 1 | . 1 1 . . . . . 1 1 1 . Autonomous 43 | . . . . . . . . 43 . . . Shots Hit Robots 599 | . 44 19 45 34 115 36 16 88 104 70 28 Core Hits 268 | . 15 10 17 17 40 12 6 48 51 36 16 Critical Kills 3 | . . . . . . . . . . 2 1 Critical Parts Destroyed 1 | . . . . . . . 1 . . . . Critical Strikes 12 | . 3 . 1 . . . 1 1 3 2 1 Burn 7 | . 3 . 1 . . . . . 3 . . Meltdown 2 | . . . . . . . . . . 1 1 Destroy 1 | . . . . . . . 1 . . . . Corrupt 1 | . . . . . . . . 1 . . . Smash 1 | . . . . . . . . . . 1 . Melee Attacks 2 | . . . . . . . . 1 . 1 . Impact 2 | . . . . . . . . 1 . 1 . Slashing . | . . . . . . . . . . . . Piercing . | . . . . . . . . . . . . Sneak Attacks . | . . . . . . . . . . . . Combat Hostiles . | . . . . . . . . . . . . Follow-up Attacks . | . . . . . . . . . . . . Damage Inflicted 12142 | . 725 388 1163 917 2304 748 262 1746 1684 1339 866 Guns 6077 | . 709 251 160 . 753 32 262 1621 1518 753 18 Cannons 4906 | . . . 670 761 1211 716 . . 165 535 848 Explosions 1031 | . . 137 332 156 290 . . 116 . . . Melee 46 | . . . . . . . . . . 46 . Ramming 82 | . 16 . 1 . 50 . . 9 1 5 . Kinetic 2641 | . . 87 53 . 753 32 262 896 429 111 18 Thermal 7908 | . 709 164 777 917 1211 716 . 135 1254 1177 848 Explosive 759 | . . 137 332 . 290 . . . . . . Electromagnetic 706 | . . . . . . . . 706 . . . Impact 46 | . . . . . . . . . . 46 . Slashing . | . . . . . . . . . . . . Piercing . | . . . . . . . . . . . . Highest Corruption 14 | . 1 1 . . . 14 . 3 3 3 3 Average Corruption 2 | . 1 1 . . . 7 . 2 3 3 3 Corruption Purged . | . . . . . . . . . . . . Corruption Blocked . | . . . . . . . . . . . . Effects 106 | . 1 6 . . . 3 . 17 32 34 13 Message Errors 27 | . . . . . . . . 4 12 8 3 Matter Fused 18 | . . 1 . . . 2 . 3 2 6 4 Heat Flow Errors 16 | . . 2 . . . . . 3 3 7 1 Energy Discharges 12 | . . 1 . . . . . 2 3 3 3 Parts Rejected 4 | . . . . . . . . 1 2 . 1 Data Loss (minor) 12 | . 1 1 . . . . . 1 6 2 1 Data Loss (major) 6 | . . . . . . . . 1 1 4 . Misfires 5 | . . 1 . . . . . 2 1 1 . Alerts 4 | . . . . . . . . . 2 2 . Weapon Failures 2 | . . . . . . 1 . . . 1 . Overload Shots . | . . . . . . . . . . . . Overflow Damage 53 | . . . 1 . 27 10 . 3 8 1 3 Projectiles 43 | . . . 1 . 20 10 . . 8 1 3 Explosions 10 | . . . . . 7 . . 3 . . . Melee . | . . . . . . . . . . . . Knockbacks . | . . . . . . . . . . . . Impact . | . . . . . . . . . . . . Kinetic . | . . . . . . . . . . . . Secondary . | . . . . . . . . . . . . Self-Inflicted Damage 108 | . 8 . . 40 22 . . 38 . . . Shots 3 | . . . . 1 1 . . 1 . . . Rammed 17 | . 1 . 1 . 14 . . . . 1 . Targets Rammed 27 | . 1 . 1 . 21 . . 2 1 1 . Kicked 9 | . . . . . 7 . . 2 . . . Crushed 1 | . . . . . . . . . 1 . . Highest Temperature 500 | . 78 257 301 69 200 348 . 262 386 251 500 Average Temperature 84 | . 15 49 46 19 37 172 . 74 128 77 146 Received Heat Transfer 1809 | . 72 9 60 78 20 81 6 412 477 357 237 Effects 10 | . . . 1 . . 2 . . 1 . 6 Shutdowns 2 | . . . . . . . . . 1 . 1 Energy Bleed 2 | . . . . . . 2 . . . . . Interference 4 | . . . 1 . . . . . . . 3 Matter Decay 1 | . . . . . . . . . . . 1 Short Circuit 1 | . . . . . . . . . . . 1 Siege Activations . | . . . . . . . . . . . . Robots Corrupted 1 | . . . . . . . . 1 . . . Combat Hostiles 1 | . . . . . . . . 1 . . . Parts Fried 3 | . . . . . . . . 3 . . . Impact Corruptions . | . . . . . . . . . . . . Robots Melted 5 | . 1 . . . 1 1 . . . 1 1 Combat Hostiles 4 | . 1 . . . . 1 . . . 1 1 Parts Melted 44 | . 3 1 3 1 14 5 . . 6 7 4 Heat Transferred 15422 | . 1887 407 1554 1619 2183 1295 . 187 2775 2368 1147 Parts Sabotaged . | . . . . . . . . . . . . Parts Stolen . | . . . . . . . . . . . . Parts Stripped . | . . . . . . . . . . . . Power Chain Reactions 1 | . . . . . . . . 1 . . . Missiles Intercepted . | . . . . . . . . . . . . Alert | -11 -10 -10 -9 -9 -9 -8 -8 -8 -8 -8 -8 ------- Run | Scr Mat Min Mat Min Exi Min Mat Gar Mat Gar Sto Peak Influence 1000 | . 273 341 506 292 . 230 225 905 527 1000 627 Initial 487 | . . 30 54 130 . . 89 146 440 345 487 Average 455 | . 102 166 300 214 . 161 107 672 381 729 490 Maximum Alert Level 3 | . 1 1 2 1 . 1 1 3 2 3 2 Low Security (%) 22 | . 81 61 27 47 . 82 95 3 9 . . Level 1 22 | . 18 38 47 52 . 17 4 10 28 6 18 Level 2 29 | . . . 24 . . . . 20 62 33 81 Level 3 26 | . . . . . . . . 65 . 60 . Level 4 . | . . . . . . . . . . . . Level 5 . | . . . . . . . . . . . . High Security . | . . . . . . . . . . . . Max Security . | . . . . . . . . . . . . Squads Dispatched 13 | . 1 . 2 1 . . 1 . 6 . 2 Investigation 6 | . . . 1 1 . . . . 3 . 1 Extermination . | . . . . . . . . . . . . Reinforcement 5 | . 1 . 1 . . . . . 3 . . Assault . | . . . . . . . . . . . . Garrison 2 | . . . . . . . 1 . . . 1 Intercept . | . . . . . . . . . . . . Searches Triggered . | . . . . . . . . . . . . Construction Impeded . | . . . . . . . . . . . . Haulers Reinforced . | . . . . . . . . . . . . Active Scanning Responses . | . . . . . . . . . . . . Cargo Convoy Interrupts . | . . . . . . . . . . . . Stealth | -11 -10 -10 -9 -9 -9 -8 -8 -8 -8 -8 -8 --------- Run | Scr Mat Min Mat Min Exi Min Mat Gar Mat Gar Sto Distress Signals 10 | . 2 . 2 . . . 1 . 5 . . Communications Jammed . | . . . . . . . . . . . . Distress Signals . | . . . . . . . . . . . . Times Spotted 207 | . 16 12 17 15 30 10 6 28 36 26 11 Peak Tracking Total 9 | . 5 5 6 4 9 4 6 8 8 7 5 Tactical Retreats 18 | . 1 2 1 . 5 . 1 2 4 2 . Traps | -11 -10 -10 -9 -9 -9 -8 -8 -8 -8 -8 -8 ------- Run | Scr Mat Min Mat Min Exi Min Mat Gar Mat Gar Sto Traps Triggered 29 | . 1 . 1 1 1 . . 7 3 11 4 Indirectly . | . . . . . . . . . . . . Trap Hack Attempts . | . . . . . . . . . . . . Triggered . | . . . . . . . . . . . . Disarmed . | . . . . . . . . . . . . Reprogrammed . | . . . . . . . . . . . . Reused . | . . . . . . . . . . . . Traps Extracted . | . . . . . . . . . . . . Installed 1 | . . . . . 1 . . . . . . Triggered . | . . . . . . . . . . . . Most Traps Carried 3 | . . 3 3 3 2 1 1 1 1 . . Exploded 3 | . . . . . 3 . . . . . . Machines | -11 -10 -10 -9 -9 -9 -8 -8 -8 -8 -8 -8 ---------- Run | Scr Mat Min Mat Min Exi Min Mat Gar Mat Gar Sto Machines Disabled 19 | . 1 1 1 3 9 1 1 . 1 . 1 Max in Single Turn 3 | . 1 1 . 3 2 1 1 . 1 . 1 Machines Sabotaged . | . . . . . . . . . . . . Garrisons Compromised . | . . . . . . . . . . . . Overloaded Fab Kills . | . . . . . . . . . . . . Hacking | -11 -10 -10 -9 -9 -9 -8 -8 -8 -8 -8 -8 --------- Run | Scr Mat Min Mat Min Exi Min Mat Gar Mat Gar Sto Machines Accessed 19 | . 2 1 . 2 2 . 2 2 4 1 3 Terminals 11 | . 2 1 . 1 . . 1 2 1 1 2 Fabricators . | . . . . . . . . . . . . Repair Stations 3 | . . . . . . . . . 2 . 1 Recycling Units . | . . . . . . . . . . . . Scanalyzers . | . . . . . . . . . . . . Garrison Access 2 | . . . . . . . 1 . 1 . . Total Hacks 46 | . 6 3 . 3 2 . 2 5 12 3 10 Successful 17 | . 2 1 . 1 2 . 1 1 8 . 1 Failed 29 | . 4 2 . 2 . . 1 4 4 3 9 Catastrophic 4 | . . . . 1 . . 1 1 . . 1 Database Lockouts . | . . . . . . . . . . . . Manual 18 | . 6 3 . 2 1 . 1 . 2 . 3 Terminals 32 | . 6 3 . 2 . . 1 5 3 3 9 Fabricators . | . . . . . . . . . . . . Repair Stations 8 | . . . . . . . . . 7 . 1 Recycling Units . | . . . . . . . . . . . . Scanalyzers . | . . . . . . . . . . . . Garrison Access 3 | . . . . . . . 1 . 2 . . Terminal Hacks 10 | . 2 1 . 1 2 . . 1 2 . 1 Record 1 | . . . . . 1 . . . . . . Open Door 2 | . . . . 1 . . . 1 . . . Branch Access Points 1 | . 1 . . . . . . . . . . Alert Level 1 | . . . . . . . . . 1 . . Unreport Threat 2 | . . . . . . . . . 1 . 1 Zone Layout 2 | . 1 1 . . . . . . . . . EX-Prototype ID Bank 1 | . . . . . 1 . . . . . . Fabricator Hacks . | . . . . . . . . . . . . Repair Station Hacks 5 | . . . . . . . . . 5 . . Scan Component 3 | . . . . . . . . . 3 . . Repair 2 | . . . . . . . . . 2 . . Recycling Unit Hacks . | . . . . . . . . . . . . Scanalyzer . | . . . . . . . . . . . . Garrison Access Hacks 2 | . . . . . . . 1 . 1 . . Unlock Access 2 | . . . . . . . 1 . 1 . . Unauthorized Hacks . | . . . . . . . . . . . . Terminals . | . . . . . . . . . . . . Fabricators . | . . . . . . . . . . . . Repair Stations . | . . . . . . . . . . . . Recycling Units . | . . . . . . . . . . . . Scanalyzers . | . . . . . . . . . . . . Garrison Access . | . . . . . . . . . . . . Data Cores Recovered . | . . . . . . . . . . . . Used . | . . . . . . . . . . . . Hacking Detections 11 | . 1 . . 1 . . 1 1 3 1 3 Full Trace Events 5 | . . . . 1 . . . 1 1 1 1 Feedback Events 1 | . . . . . . . . 1 . . . Corruption 1 | . . . . . . . . 1 . . . Feedback Blocked . | . . . . . . . . . . . . Robot Schematics Acquired . | . . . . . . . . . . . . Robots Built . | . . . . . . . . . . . . Authchips . | . . . . . . . . . . . . Time . | . . . . . . . . . . . . Total Robot Build Rating . | . . . . . . . . . . . . Part Schematics Acquired . | . . . . . . . . . . . . Parts Built . | . . . . . . . . . . . . Authchips . | . . . . . . . . . . . . Time . | . . . . . . . . . . . . Total Part Build Rating . | . . . . . . . . . . . . Parts Repaired 2 | . . . . . . . . . 2 . . Time 127 | . . . . . . . . . 127 . . Parts Recycled . | . . . . . . . . . . . . Recycled Matter . | . . . . . . . . . . . . Retrieved Matter . | . . . . . . . . . . . . Retrieved Components . | . . . . . . . . . . . . Parts Scanalyzed . | . . . . . . . . . . . . Part Schematics Acquired . | . . . . . . . . . . . . Parts Damaged . | . . . . . . . . . . . . Bothacking | -11 -10 -10 -9 -9 -9 -8 -8 -8 -8 -8 -8 ------------ Run | Scr Mat Min Mat Min Exi Min Mat Gar Mat Gar Sto Used RIF Installer . | . . . . . . . . . . . . Robots Hacked . | . . . . . . . . . . . . Non-combat . | . . . . . . . . . . . . Combat . | . . . . . . . . . . . . Robot Hacks Applied . | . . . . . . . . . . . . Relay Couplers Released 3 | . . . . . . . . 3 . . . Programmers 3 | . . . . . . . . 3 . . . Fabnet Peak Effective % . | . . . . . . . . . . . . Robots Rewired . | . . . . . . . . . . . . Allies Hacked . | . . . . . . . . . . . . Hacks Repelled . | . . . . . . . . . . . . Allies | -11 -10 -10 -9 -9 -9 -8 -8 -8 -8 -8 -8 -------- Run | Scr Mat Min Mat Min Exi Min Mat Gar Mat Gar Sto Total Allies 8 | . . 2 . 3 1 . . 2 . . . Largest Group 3 | . . 2 1 3 1 . . 2 2 . . Highest-Rated Group 70 | . . 41 31 40 36 . . 70 70 . . Highest-Rated Ally 39 | . . 31 31 16 36 . . 39 39 . . Total Orders . | . . . . . . . . . . . . Ally Attacks 90 | . . 9 17 15 14 . . 11 24 . . Total Damage 1531 | . . 146 147 120 642 . . 169 307 . . Kills 19 | . . 2 4 3 4 . . 4 2 . . Allies Corrupted . | . . . . . . . . . . . . Allies Melted . | . . . . . . . . . . . . Field Lobotomies 1 | . . . . . 1 . . . . . . Intel | -11 -10 -10 -9 -9 -9 -8 -8 -8 -8 -8 -8 ------- Run | Scr Mat Min Mat Min Exi Min Mat Gar Mat Gar Sto Robot Analysis Total . | . . . . . . . . . . . . Derelict Logs Recovered 1 | . . . . 1 . . . . . . . Drone Launches . | . . . . . . . . . . . . Drone Recoveries . | . . . . . . . . . . . . Exploration | -11 -10 -10 -9 -9 -9 -8 -8 -8 -8 -8 -8 ------------- Run | Scr Mat Min Mat Min Exi Min Mat Gar Mat Gar Sto Turns Passed 9876 | . 494 413 558 789 1858 295 206 1607 1452 1713 491 Spaces Moved 4198 | 1 308 301 257 432 676 156 122 717 476 573 179 Core . | . . . . . . . . . . . . Treads 2808 | . . . 238 432 548 . . 428 476 573 113 Legs 847 | 1 151 . . . 128 156 122 289 . . . Wheels 543 | . 157 301 19 . . . . . . . 66 Hover . | . . . . . . . . . . . . Flight . | . . . . . . . . . . . . Fastest Speed 115 | 120 115 115 115 160 126 126 126 120 160 163 160 Average Speed 188 | 120 119 115 156 160 217 126 126 199 232 240 211 Slowest Speed 400 | 120 400 115 160 160 240 126 126 240 246 246 400 Overloaded Moves . | . . . . . . . . . . . . Propulsion Burnouts . | . . . . . . . . . . . . Robots Hopped . | . . . . . . . . . . . . Cave-ins Triggered . | . . . . . . . . . . . . Exploration Rate (%) 45 | 2 52 60 33 55 87 43 20 59 52 53 34 Regions Visited 11 Branch Regions 5 Pre-discovered Areas 2 | . . . . 1 1 . . . . . . Known Exits Taken 3 | . 1 . . . . . 1 . 1 . . Unknown Exits Taken 6 | 1 . 1 1 1 1 1 . . . . . Scrap Searched 2 | . . 1 . . . 1 . . . . . Spaces Dug . | . . . . . . . . . . . . Terrain Destroyed 75 | . . 16 13 18 11 . . 5 . . 12 Melee . | . . . . . . . . . . . . Projectile 12 | . . . . . . . . . . . 12 AOE 63 | . . 16 13 18 11 . . 5 . . . Terrain Rammed . | . . . . . . . . . . . . Walls Destroyed . | . . . . . . . . . . . . Machines Disabled . | . . . . . . . . . . . . Actions | -11 -10 -10 -9 -9 -9 -8 -8 -8 -8 -8 -8 --------- Run | Scr Mat Min Mat Min Exi Min Mat Gar Mat Gar Sto Total 5367 | . 372 331 355 478 918 197 151 839 701 780 245 Wait 364 | . 12 3 16 4 69 7 1 30 113 96 13 Move 4185 | . 307 300 256 431 675 155 122 714 476 570 179 Hop . | . . . . . . . . . . . . Pick Up 83 | . 8 6 13 6 23 . 3 9 8 3 4 Fast Attach 59 | . 3 . 10 . 7 1 3 7 11 7 10 Attach 49 | . 1 1 3 . 16 3 2 8 6 7 2 Detach 8 | . . . 1 . 2 1 . 2 1 1 . Swap 33 | . 4 2 5 1 7 1 1 4 1 4 3 Drop 84 | . 5 . 19 7 20 . 3 6 13 5 6 Fire 432 | . 31 19 31 29 75 29 16 39 71 68 24 Melee 2 | . . . . . . . . 1 . 1 . Ram 1 | . 1 . . . . . . . . . . Kick 9 | . . . . . 7 . . 2 . . . Crush 17 | . . . 1 . 14 . . . 1 1 . Escape Stasis 38 | . . . . . . . . 17 . 17 4 Rewire 2 | . . . . . 2 . . . . . . Trap 1 | . . . . . 1 . . . . . . Miscellaneous . | . . . . . . . . . . . . Route ------- -11/Scrapyard -10/Materials (discovered 3 exits: [*Mat] / *Min x2) -10/Mines -9/Materials (discovered 2 exits: *Mat / *Min) -9/Mines (discovered 2 exits: *Mat / *Exi) -9/Exiles (discovered 2 exits: [*Min x2]) -8/Mines -8/Materials -8/Garrison (discovered 3 exits: *Mat x3) -8/Materials (discovered 4 exits: [*Fac x2] / *Sto / Gar) -8/Garrison (discovered 3 exits: *Sto x3) -8/Storage History --------- Turn | Location | Event 1 | -11/Scrapyard | Discovered new exit (range 0) 1 | -11/Scrapyard | Entered Materials 225 | -10/Materials | Discovered new exit (range 8) 310 | -10/Materials | Build established: Mutant 354 | -10/Materials | Identified exit to Mines 467 | -10/Materials | Discovered new exit (range 15) 495 | -10/Materials | Entered Mines 642 | -10/Mines | Found a hidden stash of uninstalled traps 885 | -10/Mines | Discovered new exit (range 9) 900 | -10/Mines | Assembled infested the area 905 | -10/Mines | Assisted by a Guerilla fighting off Assembled 908 | -10/Mines | Entered Materials 908 | -9/Materials | Accompanied by 1 ally 908 | -9/Materials | Evolved 2 slots: Propulsion x1, Utility x1 913 | -9/Materials | Led the pair of lost Derelicts to an unsafe place 1100 | -9/Materials | Discovered new exit (range 12) 1291 | -9/Materials | Discovered new exit (range 13) 1466 | -9/Materials | Entered Mines 1479 | -9/Mines | Joined a pair of Derelicts in attacking an 0b10 outpost 1630 | -9/Mines | Met a Derelict who couldn't figure out how to use a Trap Extractor 1722 | -9/Mines | Learned location of Zion (-7) 1741 | -9/Mines | Excavation squad dispatched 1741 | -9/Mines | A large section of the Mines collapsed 1855 | -9/Mines | Assisted by bots powering up and referring to "LRC-V3" 1969 | -9/Mines | Discovered new exit (range 10) 1982 | -9/Mines | Received a Rocket Launcher from a helpful Derelict 2248 | -9/Mines | Deemed a non-threat by the Exiles lab entrance 2248 | -9/Mines | Discovered new exit (range 5) 2255 | -9/Mines | Entered Exiles 2276 | -9/Exiles | Discovered new exit (range 15) 2349 | -9/Exiles | Met 8R-AWN 2387 | -9/Exiles | Met EX-HEX 2452 | -9/Exiles | Met EX-BIN 2486 | -9/Exiles | Aligned with FarCom system 2488 | -9/Exiles | Given EX-Vault access code 2546 | -9/Exiles | Opened EX-Vault 2560 | -9/Exiles | Found Field Lobotomy Kit 2614 | -9/Exiles | Warned to stay clear of 0b10 Research branches 2686 | -9/Exiles | Met EX-DEC 3086 | -9/Exiles | Attacked by the Exiles 3295 | -9/Exiles | Destroyed 8R-AWN 3308 | -9/Exiles | Lost 8 parts (2p4n1u1w) 3351 | -9/Exiles | Found Prototype Processor 3510 | -9/Exiles | Assimilated DAS Turret with FLK Orb 3539 | -9/Exiles | Lost 3 parts (1p1n1w) 3614 | -9/Exiles | Build established: Scavenger-Mutant 3744 | -9/Exiles | Core integrity fell below 50% 3802 | -9/Exiles | Destroyed EX-DEC 3829 | -9/Exiles | Found Prototype Processor 3838 | -9/Exiles | Found Prototype Energy Gun 3845 | -9/Exiles | Destroyed EX-BIN 3910 | -9/Exiles | Destroyed EX-HEX 4098 | -9/Exiles | Discovered new exit (range 12) 4113 | -9/Exiles | Entered Mines 4335 | -8/Mines | Discovered new exit (range 8) 4352 | -8/Mines | Core integrity fell below 20% 4401 | -8/Mines | Lost 3 parts (2u1w) 4408 | -8/Mines | System corruption reached 10% 4408 | -8/Mines | Entered Materials 4408 | -8/Materials | Evolved 2 slots: Utility x2 4548 | -8/Materials | Garrison activated, responded to threat 4614 | -8/Materials | Identified exit to Garrison 4614 | -8/Materials | Entered Garrison 4616 | -8/Garrison | Triggered checkpoint 4654 | -8/Garrison | Triggered checkpoint 4818 | -8/Garrison | Identified AWS/EX-DEC 4841 | -8/Garrison | Lost 5 parts (1p3u1w) 4912 | -8/Garrison | Discovered new exit (range 9) 4984 | -8/Garrison | Triggered checkpoint 5056 | -8/Garrison | Destroyed 8 combat bots 5064 | -8/Garrison | Lost 4 parts (1n3u) 5099 | -8/Garrison | Discovered new exit (range 12) 5132 | -8/Garrison | Rescued a captive Derelict 5144 | -8/Garrison | Rescued a captive Derelict 5382 | -8/Garrison | Triggered checkpoint 5633 | -8/Garrison | Discovered new exit (range 10) 5833 | -8/Garrison | Attempted to access garrison exit controls, blocked by remote lockdown 6037 | -8/Garrison | Attempted to access garrison exit controls, blocked by remote lockdown 6221 | -8/Garrison | Entered Materials 6221 | -8/Materials | Accompanied by 2 allies 6262 | -8/Materials | Identified Exp. Targeting Computer 6710 | -8/Materials | Discovered new exit (range 8) 6721 | -8/Materials | Found Prototype Device 7097 | -8/Materials | Repaired Broken Rnf. Fission Core 7299 | -8/Materials | Repaired Adv. Myomer Leg 7406 | -8/Materials | Discovered new exit (range 6) 7559 | -8/Materials | Discovered new exit (range 5) 7652 | -8/Materials | Identified Exp. Core Analyzer 7673 | -8/Materials | Identified exit to Garrison 7673 | -8/Materials | Entered Garrison 7702 | -8/Garrison | Triggered checkpoint 8006 | -8/Garrison | Triggered checkpoint 8014 | -8/Garrison | Core integrity fell below 50% 8059 | -8/Garrison | Lost 3 parts (2n1u) 8120 | -8/Garrison | Triggered checkpoint 8124 | -8/Garrison | Triggered checkpoint 8404 | -8/Garrison | Triggered checkpoint 8443 | -8/Garrison | Discovered new exit (range 10) 8675 | -8/Garrison | Discovered new exit (range 13) 8834 | -8/Garrison | Triggered checkpoint 8904 | -8/Garrison | Attempted to access garrison exit controls, blocked by remote lockdown 9000 | -8/Garrison | Triggered checkpoint 9144 | -8/Garrison | Attempted to access garrison exit controls, blocked by remote lockdown 9350 | -8/Garrison | Discovered new exit (range 15) 9386 | -8/Garrison | Entered Storage 9760 | -8/Storage | Core integrity fell below 20% 9876 | -8/Storage | Garrison activated, responded to threat 9877 | -8/Storage | Destroyed by Y-45 Defender with Heavy Assault Rifle Last Messages --------------- 09840_ S-10 Pest destroyed. 09841_ U-05 Engineer builds a Wall. 09842_ K-01 Serf collects debris. 09842_ K-01 Serf destroyed. 09843_ Lgt. Treads destroyed. 09844_ S-10 Pest destroyed. 09844_ U-05 Engineer destroyed. 09845_ Overheating: System interference. 09845_ Exp. Core Analyzer temporarily disabled. 09845_ Adv. Weapon Cycler temporarily disabled. 09846_ Overheating: Matter decay (-35). 09849_ Power failure, Rnf. Fission Core shutdown. 09849_ Acquired 40 matter. 09852_ K-01 Serf collects debris. 09862_ U-05 Engineer builds a Wall. 09869_ System corrupted: Com. Ion Cannon rejected. 09873_ U-05 Engineer builds a Wall. 09873_ Acquired Com. Ion Cannon. 09876_ Y-45 Defender calls for garrison reinforcements. 09876_ ALERT: Activating Garrison Access S001. Map ----- +----------------------------------------------------+ | ???????????????????????????????????????????????+## | | ?????????????????????????????????????????????????? | | ?????????????????????????????????????????????????? | | ?????????????????????????????????????????????????? | | ?????????????????????????????????????????????????? | | ?????????????????????????????????????????????????? | | ?????????????????????????????????????????????????? | | ?????????????###?????????????????????????????????? | | ????????????? ????????????????????????????????? | | ?????????????? ???????####????????????????????? | | ???????????? ??#####%##????????????????????? | | ???????????? ?# T #????????????????????? | | ???????????/ #%! !!!#????????????????????? | | ???????????# #[= !!!#????????????????????? | | ???????????# =#%*=!! #????????????????????? | | ?????????????? [%%%%= % #????????????????????? | | ?????????????????????#** #????????????????????? | | ?????????????????######"#+############????????#### | | ?????????? % ???? | | ?????????????????########u ##???????????????# | | ????????????????????????#u #??#####?????????? | | ????????????????????????#g #?? #?????????? | | ????????????????????????# ##### #??"" #?????????? | | ????????????????????????; #???# #???" /?????????? | | ????????????????????????#Y#???# +???" #?????????? | | ????????????????????????#@#???# #???? #?######??? | | ????????????????????????# #???# #???? #? #??? | | ????????????????????????# #??## ##???#+# #?#? | | ??????????????????????###+#### ##### # # | | ??????????????????????#! [ + T + """ # | | ??????????????????????# ! # ##### # """ # | | ??????????????????????#! #####???# # """ # ? | | ??????????????????????# ! #???????# #?######??? | | ??????????????????????# #???????# #??####???? | | ??????????????????????# #???????# #? #???? | | ??????????????????????########???????# #?"" #???? | | ?????????????????????????????????????# #""" ##### | | ?????????????????????????????????????# #""" # | | ?????????????????????????????????????# + # ### | | ?????????????????????????????????????# ####### ### | | ?????????????????????????????????????# ###### [ ## | | ?????????????????????????????????????# % ## | | ?????????????????????????????????????######## ## | | ????????????????????????????????????????????##"### | | ?????????????????????????????????????????????###?# | | ?????????????????????????????????????????????????# | | | | | | | | | +----------------------------------------------------+ Best States ------------- Heat Dissipation 59 Energy Generation 19 Energy Capacity 310 Matter Stores 450 Matter Capacity 450 Sight Range 16 Terrain Scan Density 10 Armor Coverage 600 Weapon Cycling 25 Evasion (%) 55 Targeting Accuracy 12 Core Analysis 8 Recoil Reduction 3 Offensive Hacking 10 Authchip Count 1 Item Schematics ----------------- None Robot Schematics ------------------ None Fabricated ------------ Nothing Alien Tech Used ----------------- None Achievements -------------- None Challenges ------------ None Game ------ Seed SeismicDroneMicroactuators Manual? 0 Play Time 00:54:26 Cumulative 402.5 hours Start 2022.08.30 @ 20:28:53 End 2022.08.30 @ 21:23:54 Sessions 1 Manual Loads 0 Difficulty Rogue Special Mode None Game No. 419 Rogue 419 Adventurer 0 Explorer 0 Win Type - Total 31 Types 18/3/3/1/2/1/3/0/0 Lore% 91 Gallery% 93 Achievement% 81 Wizard Run 0 Options --------- ASCII 0 Keyboard 0 Movement Arrows Keybinds 0 Fullscreen 2 Font 24/Smallcaps Map View 76x50 Tactical HUD 1 Map Filters NONE Filters NONE Steam 1 RUN: 2aa8d4ce-e2e9-4028-9060-79045473a732